[Event "Asian Amateur-ch Women 2022"]
[Site "Muscat"]
[Date "2022.10.03"]
[Round "6.7"]
[White "Sawan, Eman"]
[Black "Amal Fadel S M Alshamsi"]
[Result "1-0"]
[ECO "C05"]
[WhiteElo "1840"]
[BlackElo "1404"]
[Annotator "NA RC COMBH"]
[PlyCount "73"]
[EventDate "2022.09.29"]
[EventType "swiss"]
[SourceTitle "playchess.com"]
[Source "ChessBase"]
[SourceQuality "1"]
[TimeControl "5400+30"]

1. e4 {[%emt 0:00:02]} e6 {[%emt 0:00:33]} 2. d4 {[%emt 0:00:16]} d5 {[%emt 0:00:02]} 3. Nd2 {[%emt 0:00:07]} Nf6 {[%emt 0:00:28]} 4. e5 {[%emt 0:00:41]} Nfd7 {[%emt 0:00:05]} 5. f4 {[%emt 0:00:11]} c5 {[%emt 0:00:21]} 6. c3 {[%emt 0:00:19]} Nc6 {[%emt 0:00:08]} 7. Ndf3 {[%emt 0:00:27]} cxd4 {[%emt 0:03:07]} 8. cxd4 {[%emt 0:00:37]} Qa5+ {[%emt 0:05:25]} 9. Kf2 {[%emt 0:04:52]} f6 {[%emt 0:05:01]} 10. Be3 {[%emt 0:15:09]} (10. g3 $1 $14 {might be stronger.}) 10... Be7 {[%emt 0:09:51]} 11. a3 {[%emt 0:02:01]} Qd8 {[%emt 0:09:01]} 12. b4 {[%emt 0:03:16]} a6 {[%emt 0:01:29]} 13. g3 {[%emt 0:03:39]} Nb6 {[%emt 0:18:07]} 14. Bd3 {[%emt 0:05:47]} Nc4 {[%emt 0:06:15]} 15. Bxc4 {[%emt 0:03:08]} dxc4 {[%emt 0:00:18]} 16. Ne2 {[%emt 0:03:31]} fxe5 {[%emt 0:06:28]} ({Better is} 16... b5 $17) 17. dxe5 {[%emt 0:01:16]} Qxd1 {[%emt 0:02:25]} 18. Rhxd1 {[%emt 0:00:14]} b5 {[%emt 0:04:57]} 19. Nc3 {[%emt 0:06:02]} O-O {[%emt 0:03:54]} 20. Ke2 {[%emt 0:05:15]} Rb8 {[%emt 0:04:19]} 21. Nd2 {[%emt 0:04:52]} a5 {[%emt 0:01:44]} 22. bxa5 {[%emt 0:10:55]} Nxa5 {[%emt 0:00:08]} 23. Nce4 {[%emt 0:05:02]} Ba6 {[%emt 0:06:02]} 24. Bc5 {[%emt 0:02:30]} Nc6 {[%emt 0:08:03]} 25. Ke3 {[%emt 0:05:43]} Rfc8 {[%emt 0:03:02]} 26. Bd6 {[%emt 0:02:44]} Bxd6 {[%emt 0:00:55]} (26... Ra8 $14) 27. Nxd6 {[%emt 0:00:05]} Rd8 {[%emt 0:00:45]} 28. N2e4 {[%emt 0:01:06]} Ne7 {[%emt 0:00:46]} 29. Nc5 {[%emt 0:00:41]} Nd5+ {[%emt 0:00:15]} 30. Rxd5 {[%emt 0:00:19]} exd5 {[%emt 0:00:07]} 31. Nxa6 {[%emt 0:00:14]} Rb6 {[%emt 0:00:17]} 32. Nb4 {[%emt 0:00:37]} Ra8 {[%emt 0:01:28]} 33. Nxd5 {[%emt 0:00:58]} Rba6 {[%emt 0:00:28]} 34. Nxb5 {[%emt 0:00:11]} Ra5 $18 {[%emt 0:00:12]} 35. Ndc7 {[%emt 0:00:30]} Rb8 {[%emt 0:00:26]} 36. a4 {[%emt 0:00:24]} Rd8 {[%emt 0:00:29]} 37. Ra3 {[%emt 0:01:15]} 1-0

[Event "Asian Amateur-ch Women 2022"]
[Site "Muscat"]
[Date "2022.10.03"]
[Round "6.8"]
[White "Algubaishi, Afnan Hassan"]
[Black "Al-Khelaifi, Aisha"]
[Result "0-1"]
[ECO "C42"]
[WhiteElo "1450"]
[BlackElo "1678"]
[Annotator "NA RC COMBH"]
[PlyCount "134"]
[EventDate "2022.09.29"]
[EventType "swiss"]
[SourceTitle "playchess.com"]
[Source "ChessBase"]
[SourceQuality "1"]
[TimeControl "5400+30"]

1. e4 {[%emt 0:00:03]} e5 {[%emt 0:00:07]} 2. Nf3 {[%emt 0:00:05]} Nf6 {[%emt 0:00:16]} 3. Nc3 {[%emt 0:00:21]} Bb4 {[%emt 0:00:59]} 4. Bc4 {[%emt 0:00:38]} d6 {[%emt 0:04:24]} 5. d3 {[%emt 0:01:43]} h6 {[%emt 0:01:22]} 6. h3 {[%emt 1:30:40]} Be6 {[%emt 0:01:19]} 7. Bb3 {[%emt 0:00:00]} O-O {[%emt 0:01:55]} 8. O-O {[%emt 0:00:00]} Nbd7 {[%emt 0:01:32]} 9. Ne2 {[%emt 0:00:00]} c6 {[%emt 0:02:56]} 10. c3 {[%emt 0:00:00]} Ba5 {[%emt 0:00:34]} 11. Bc2 {[%emt 0:00:00]} Bc7 {[%emt 0:07:37]} 12. Ng3 {[%emt 0:00:00]} d5 {[%emt 0:03:33]} 13. d4 {[%emt 0:00:00]} exd4 {[%emt 0:04:38]} 14. cxd4 {[%emt 0:00:00]} Bxg3 {[%emt 0:04:10]} 15. fxg3 {[%emt 0:00:00]} Nxe4 {[%emt 0:01:08]} 16. Bf4 {[%emt 0:00:00]} Ndf6 {[%emt 0:04:50]} 17. g4 {[%emt 0:00:00]} Rc8 {[%emt 0:06:27]} 18. Rc1 {[%emt 0:00:00]} Qb6 {[%emt 0:08:23]} 19. Bb3 {[%emt 0:00:00]} c5 {[%emt 0:04:52]} 20. Rb1 {[%emt 0:00:00]} c4 {[%emt 0:04:58]} 21. Bc2 {[%emt 0:00:00]} Qa5 22. a4 {[%emt 0:08:00]} a6 {[%emt 0:35:30]} 23. g5 {[%emt 0:00:30]} Nh5 {[%emt 0:00:30]} 24. Nh4 {[%emt 0:00:00]} Nxf4 {[%emt 0:00:30]} 25. gxh6 {[%emt 0:01:00]} Ng6 {[%emt 0:00:30]} 26. Qh5 {[%emt 0:00:30]} Ng3 {[%emt 0:00:00]} 27. h7+ {[%emt 0:00:00]} Kh8 {[%emt 0:00:00]} 28. Nxg6+ {[%emt 0:00:00]} fxg6 {[%emt 0:00:00]} 29. Rxf8+ {[%emt 0:00:00]} Rxf8 {[%emt 0:00:00]} 30. Qh4 {[%emt 0:00:00]} Nf5 {[%emt 0:00:00]} 31. Qf4 {[%emt 0:00:00]} Qb6 {[%emt 0:00:00]} 32. g4 {[%emt 0:00:00]} Qxd4+ {[%emt 0:00:00]} 33. Qxd4 {[%emt 0:00:00]} Nxd4 {[%emt 0:00:00]} 34. Bxg6 {[%emt 0:00:00]} Nf3+ {[%emt 0:00:46]} 35. Kh1 {[%emt 0:00:00]} Ng5 {[%emt 0:00:01]} 36. h4 {[%emt 0:00:00]} Ne4 {[%emt 0:00:40]} 37. Rg1 {[%emt 0:00:00]} Nf2+ {[%emt 0:00:33]} 38. Kg2 {[%emt 0:00:00]} Nxg4 {[%emt 0:00:02]} 39. Kg3 {[%emt 0:00:00]} Nf6 {[%emt 0:00:27]} 40. Kf4 {[%emt 0:00:00]} Ng4+ {[%emt 0:01:38]} 41. Kg5 {[%emt 0:00:00]} Nf6 {[%emt 0:00:27]} 42. Kf4 {[%emt 0:00:00]} Nd7+ {[%emt 0:01:17]} 43. Ke3 {[%emt 0:00:00]} Bf5 {[%emt 0:00:20]} 44. h5 {[%emt 0:00:00]} Rf6 {[%emt 0:01:08]} 45. Kd4 {[%emt 0:00:00]} Be4 {[%emt 0:02:41]} 46. Rg5 {[%emt 0:00:00]} Nf8 {[%emt 0:00:00]} 47. Bxe4 {[%emt 0:00:16]} Ne6+ {[%emt 0:00:00]} 48. Kxd5 {[%emt 0:00:39]} Nxg5 {[%emt 0:00:00]} 49. Bg6 {[%emt 0:00:37]} Rb6 {[%emt 0:00:00]} 50. Kxc4 {[%emt 0:00:20]} Rxb2 {[%emt 0:00:00]} 51. Kc3 {[%emt 0:01:22]} Rb6 {[%emt 0:00:00]} 52. Bd3 {[%emt 0:01:30]} Nxh7 {[%emt 0:00:00]} 53. Kc4 {[%emt 0:01:16]} Nf6 {[%emt 0:00:00]} 54. Be2 {[%emt 0:01:10]} Ne4 {[%emt 0:00:00]} 55. Bg4 {[%emt 0:01:56]} Nf6 {[%emt 0:00:00]} 56. Be2 {[%emt 0:00:32]} Kh7 {[%emt 0:00:00]} 57. Bf3 {[%emt 0:00:48]} Kh6 {[%emt 0:00:00]} 58. Kc5 {[%emt 0:00:46]} Rb2 {[%emt 0:00:00]} 59. Kd6 {[%emt 0:01:00]} Rb4 {[%emt 0:00:14]} 60. Kc7 {[%emt 0:00:27]} Rxa4 {[%emt 0:00:27]} 61. Kxb7 {[%emt 0:00:25]} Nxh5 {[%emt 0:00:16]} 62. Bc6 {[%emt 0:00:24]} Ra1 {[%emt 0:00:03]} 63. Kb6 {[%emt 0:00:42]} a5 {[%emt 0:00:02]} 64. Kb5 {[%emt 0:00:35]} g5 {[%emt 0:00:07]} 65. Bf3 {[%emt 0:00:30]} Ng3 {[%emt 0:00:28]} 66. Bg4 {[%emt 0:00:40]} Ne4 {[%emt 0:00:17]} 67. Kc4 {[%emt 0:01:15]} Nf2 {[%emt 0:00:25]} 0-1

[Event "Asian Amateur-ch Women 2022"]
[Site "Muscat"]
[Date "2022.10.03"]
[Round "6.9"]
[White "Anoud Eisa Bashkardi"]
[Black "Al-Khulaifi, Ghada"]
[Result "1/2-1/2"]
[ECO "C47"]
[WhiteElo "1277"]
[BlackElo "1620"]
[Annotator "NA RC COMBH"]
[PlyCount "106"]
[EventDate "2022.09.29"]
[EventType "swiss"]
[SourceTitle "playchess.com"]
[Source "ChessBase"]
[SourceQuality "1"]
[TimeControl "5400+30"]

1. e4 {[%emt 0:00:06]} e5 {[%emt 0:00:09]} 2. Nf3 {[%emt 0:00:03]} Nc6 {[%emt 0:00:11]} 3. Nc3 {[%emt 0:00:02]} Nf6 {[%emt 0:00:19]} 4. d4 {[%emt 0:00:03]} exd4 {[%emt 0:02:47]} 5. Nxd4 {[%emt 0:00:24]} Bb4 {[%emt 0:00:14]} 6. Nxc6 {[%emt 0:00:13]} bxc6 {[%emt 0:01:12]} 7. Bd3 {[%emt 0:00:36]} h6 {[%emt 0:02:30]} 8. O-O {[%emt 0:03:01]} O-O {[%emt 0:00:15]} 9. e5 {[%emt 0:01:55]} Bxc3 {[%emt 0:04:55]} 10. bxc3 {[%emt 0:00:19]} Ne8 {[%emt 0:00:41]} 11. Qh5 {[%emt 0:08:04]} a5 {[%emt 0:07:38]} 12. Bxh6 {[%emt 0:01:13]} gxh6 {[%emt 0:00:57]} 13. Qxh6 {[%emt 0:00:29]} f5 {[%emt 0:00:06]} 14. exf6 {[%emt 0:00:37]} Nxf6 {[%emt 0:00:05]} 15. Rfe1 {[%emt 0:04:14]} Rf7 {[%emt 0:09:49]} 16. Re5 {[%emt 0:20:43]} Qf8 {[%emt 0:01:20]} 17. Qh4 {[%emt 0:03:04]} d5 {[%emt 0:02:47]} 18. Rae1 {[%emt 0:03:33]} Rg7 {[%emt 0:01:47]} 19. Rg5 {[%emt 0:04:34]} Bd7 {[%emt 0:01:22]} 20. Ree5 {[%emt 0:02:05]} Rxg5 {[%emt 0:04:25]} 21. Rxg5+ {[%emt 0:00:16]} Kf7 {[%emt 0:00:06]} 22. Bg6+ {[%emt 0:01:21]} Ke7 {[%emt 0:00:39]} 23. Rg3 {[%emt 0:01:15]} Qh8 {[%emt 0:06:35]} 24. Re3+ {[%emt 0:00:40]} Be6 {[%emt 0:01:12]} 25. Qf4 {[%emt 0:01:01]} Kd7 {[%emt 0:01:04]} 26. Bf5 {[%emt 0:01:11]} Re8 {[%emt 0:00:47]} 27. h3 {[%emt 0:04:14]} Bxf5 {[%emt 0:02:52]} 28. Qxf5+ {[%emt 0:00:05]} Kd8 {[%emt 0:00:09]} 29. Rf3 {[%emt 0:01:39]} Ne4 {[%emt 0:01:55]} 30. c4 {[%emt 0:00:36]} Nd2 {[%emt 0:00:41]} 31. Qg5+ {[%emt 0:01:06]} Kc8 {[%emt 0:00:04]} 32. Qxd2 {[%emt 0:00:39]} Qa1+ {[%emt 0:00:22]} 33. Kh2 {[%emt 0:00:07]} Qxa2 {[%emt 0:01:40]} 34. cxd5 {[%emt 0:00:13]} Qxd5 {[%emt 0:03:01]} 35. Qxd5 {[%emt 0:00:10]} cxd5 {[%emt 0:00:01]} 36. Ra3 {[%emt 0:00:32]} Re2 {[%emt 0:00:35]} 37. Rxa5 {[%emt 0:00:18]} c6 {[%emt 0:00:26]} 38. Rc5 {[%emt 0:00:12]} Kd7 {[%emt 0:00:14]} 39. Kg3 {[%emt 0:00:38]} Kd6 {[%emt 0:00:04]} 40. Kf3 {[%emt 0:00:40]} Re4 {[%emt 0:02:57]} 41. Rc3 {[%emt 0:00:16]} c5 {[%emt 0:00:05]} 42. g4 {[%emt 0:00:27]} Re1 {[%emt 0:01:03]} 43. g5 {[%emt 0:00:34]} d4 {[%emt 0:00:31]} 44. Rd3 {[%emt 0:00:12]} Ke5 {[%emt 0:00:15]} 45. c3 {[%emt 0:00:39]} dxc3 {[%emt 0:11:59]} 46. Rxc3 {[%emt 0:00:17]} Kd4 {[%emt 0:00:02]} 47. Re3 {[%emt 0:01:04]} Rg1 {[%emt 0:01:11]} 48. Ke2 {[%emt 0:00:19]} Rxg5 {[%emt 0:00:11]} 49. Rd3+ {[%emt 0:03:32]} Kc4 {[%emt 0:01:34]} 50. h4 {[%emt 0:08:54]} Rh5 {[%emt 0:00:02]} 51. Rh3 {[%emt 0:00:15]} Kd4 {[%emt 0:00:42]} 52. Rd3+ {[%emt 0:00:34]} Kc4 {[%emt 0:00:17]} 53. Rh3 {[%emt 0:00:06]} Rxh4 {[%emt 0:30:15]} 1/2-1/2

[Event "Asian Amateur-ch Women 2022"]
[Site "Muscat"]
[Date "2022.10.03"]
[Round "7.1"]
[White "Amulya Guruprasad"]
[Black "Rouda Essa, Alserkal"]
[Result "1-0"]
[ECO "D02"]
[WhiteElo "1278"]
[BlackElo "1893"]
[Annotator "NA RC COMBH"]
[PlyCount "75"]
[EventDate "2022.09.29"]
[EventType "swiss"]
[EventCountry "OMN"]
[SourceTitle "playchess.com"]
[Source "ChessBase"]
[SourceQuality "1"]
[TimeControl "5400+30"]

1. d4 {[%emt 0:00:01]} Nf6 {[%emt 0:00:04]} 2. Nf3 {[%emt 0:00:02]} d5 {[%emt 0:00:05]} 3. Bf4 {[%emt 0:00:09]} c5 {[%emt 0:00:03]} 4. e3 {[%emt 0:00:04]} e6 {[%emt 0:00:05]} 5. c3 {[%emt 0:00:13]} Nc6 {[%emt 0:00:28]} 6. Nbd2 {[%emt 0:00:07]} h6 {[%emt 0:01:24]} 7. Ne5 {[%emt 0:02:06]} Nxe5 {[%emt 0:03:01]} 8. dxe5 {[%emt 0:00:11]} Nd7 {[%emt 0:01:56]} 9. Bd3 {[%emt 0:01:13]} Qc7 {[%emt 0:01:20]} 10. Nf3 {[%emt 0:00:14]} g6 {[%emt 0:06:33]} 11. h4 {[%emt 0:15:49]} Bg7 {[%emt 0:02:03]} 12. Bh2 {[%emt 0:03:27]} Nxe5 {[%emt 0:06:23]} 13. Nxe5 {[%emt 0:01:48]} Bxe5 {[%emt 0:00:35]} 14. f4 {[%emt 0:00:02]} Bd6 {[%emt 0:02:21]} 15. Qf3 {[%emt 0:00:45]} Bd7 {[%emt 0:01:07]} 16. O-O-O {[%emt 0:06:34]} O-O-O {[%emt 0:02:24]} 17. e4 {[%emt 0:04:46]} Qa5 {[%emt 0:09:16]} 18. exd5 {[%emt 0:01:21]} Qxa2 {[%emt 0:04:12]} 19. Bb1 {[%emt 0:08:27]} Qa1 {[%emt 0:00:58]} 20. f5 {[%emt 0:16:35]} Bxh2 {[%emt 0:04:26]} 21. fxe6 {[%emt 0:00:02]} Ba4 {[%emt 0:03:54]} 22. e7 {[%emt 0:02:04]} Rde8 {[%emt 0:09:10]} 23. Rde1 {[%emt 0:01:02]} Bd7 {[%emt 0:01:55]} 24. g4 {[%emt 0:00:17]} Bd6 {[%emt 0:05:11]} 25. Qxf7 {[%emt 0:00:20]} Bxg4 {[%emt 0:01:12]} 26. Qxg6 {[%emt 0:01:20]} Rhg8 {[%emt 0:10:06]} 27. Qxd6 {[%emt 0:06:32]} Bf5 {[%emt 0:00:33]} 28. Re4 {[%emt 0:00:01]} Rg6 {[%emt 0:16:52]} 29. Qxc5+ {[%emt 0:01:22]} Kb8 {[%emt 0:00:38]} 30. d6 {[%emt 0:00:31]} Rg2 {[%emt 0:04:07]} 31. Qc7+ {[%emt 0:00:47]} Ka8 {[%emt 0:00:01]} 32. Qd8+ {[%emt 0:00:02]} Bc8 {[%emt 0:00:01]} 33. Rb4 {[%emt 0:00:02]} Rgg8 {[%emt 0:02:39]} 34. Qc7 {[%emt 0:00:23]} b6 {[%emt 0:01:09]} 35. d7 {[%emt 0:00:17]} Bxd7 {[%emt 0:00:39]} 36. Qxd7 {[%emt 0:00:03]} Rc8 {[%emt 0:00:29]} 37. Qd5+ {[%emt 0:00:57]} Kb8 {[%emt 0:00:01]} 38. Rc4 {[%emt 0:00:37]} 1-0

[Event "Asian Amateur-ch Women 2022"]
[Site "Muscat"]
[Date "2022.10.03"]
[Round "7.2"]
[White "Shybi Binoj"]
[Black "Wijesuriya, G P Y"]
[Result "0-1"]
[ECO "C55"]
[WhiteElo "1402"]
[BlackElo "1564"]
[Annotator "NA RC COMBH"]
[PlyCount "90"]
[EventDate "2022.09.29"]
[EventType "swiss"]
[EventCountry "OMN"]
[SourceTitle "playchess.com"]
[Source "ChessBase"]
[SourceQuality "1"]
[TimeControl "5400+30"]

1. e4 {[%emt 0:00:04]} e5 {[%emt 0:00:22]} 2. Nf3 {[%emt 0:00:16]} Nc6 {[%emt 0:00:11]} 3. Bc4 {[%emt 0:00:22]} Nf6 {[%emt 0:01:02]} 4. Nc3 {[%emt 0:00:38]} Nxe4 {[%emt 0:00:25]} 5. Nxe4 {[%emt 0:01:44]} d5 {[%emt 0:00:00]} 6. Bxd5 {[%emt 0:01:10]} Qxd5 {[%emt 0:00:17]} 7. d3 {[%emt 0:00:21]} h6 {[%emt 0:02:57]} 8. h3 {[%emt 0:01:36]} Be7 {[%emt 0:02:22]} 9. Be3 {[%emt 0:02:48]} f5 {[%emt 0:06:10]} 10. Nc3 {[%emt 0:01:12]} Qd6 {[%emt 0:06:25]} 11. Qe2 {[%emt 0:05:18]} a6 {[%emt 0:00:44]} 12. O-O-O {[%emt 0:02:56]} O-O {[%emt 0:00:07]} 13. Nd2 {[%emt 0:05:19]} b5 {[%emt 0:00:39]} 14. Nb3 {[%emt 0:00:47]} Nd4 {[%emt 0:01:28]} 15. Bxd4 {[%emt 0:05:52]} exd4 {[%emt 0:00:14]} 16. Qf3 {[%emt 0:06:07]} Be6 {[%emt 0:01:37]} 17. Nb1 {[%emt 0:03:43]} a5 {[%emt 0:03:11]} 18. Rhe1 {[%emt 0:02:23]} Ra6 {[%emt 0:00:19]} 19. Rxe6 {[%emt 0:57:24]} Qxe6 {[%emt 0:00:58]} 20. Nxd4 {[%emt 0:00:00]} Bg5+ {[%emt 0:00:15]} 21. Nd2 {[%emt 0:00:00]} Qxa2 {[%emt 0:01:52]} 22. c3 {[%emt 0:00:00]} b4 {[%emt 0:01:11]} 23. Kc2 {[%emt 0:00:00]} Bxd2 {[%emt 0:11:10]} 24. Rxd2 {[%emt 0:00:00]} bxc3 {[%emt 0:02:16]} 25. Kxc3 {[%emt 0:00:00]} a4 {[%emt 0:04:25]} 26. Rc2 {[%emt 0:00:00]} a3 {[%emt 0:01:54]} 27. bxa3 {[%emt 0:00:00]} Qxa3+ {[%emt 0:00:18]} 28. Nb3 {[%emt 0:00:00]} Qd6 {[%emt 0:10:37]} 29. d4 {[%emt 0:00:00]} Ra3 {[%emt 0:02:09]} 30. Kd2 {[%emt 0:00:00]} Kh8 {[%emt 0:06:50]} 31. Qb7 {[%emt 0:00:00]} Rd8 {[%emt 0:03:26]} 32. Kc1 {[%emt 0:00:00]} Qd5 {[%emt 0:05:16]} 33. Qxd5 {[%emt 0:00:00]} Rxd5 {[%emt 0:00:01]} 34. Kb2 {[%emt 0:00:00]} Ra7 {[%emt 0:00:09]} 35. Kc3 {[%emt 0:00:00]} Kg8 {[%emt 0:02:46]} 36. Re2 {[%emt 0:00:00]} Kf7 {[%emt 0:01:12]} 37. Kc4 {[%emt 0:00:00]} Rd6 {[%emt 0:00:18]} 38. Re5 {[%emt 0:00:00]} g6 {[%emt 0:00:22]} 39. d5 {[%emt 0:00:00]} Ra2 {[%emt 0:01:03]} 40. Nd4 {[%emt 0:00:00]} Rxf2 {[%emt 0:00:37]} 41. Nc6 {[%emt 0:00:00]} Kf6 {[%emt 0:01:25]} 42. Re8 {[%emt 0:00:00]} Rxg2 {[%emt 0:01:39]} 43. Rc8 {[%emt 0:00:00]} Rc2+ {[%emt 0:00:24]} 44. Kb3 {[%emt 0:00:00]} Rcxc6 {[%emt 0:00:05]} 45. dxc6 {[%emt 0:00:00]} Rxc6 {[%emt 0:00:07]} 0-1

[Event "Asian Amateur-ch Women 2022"]
[Site "Muscat"]
[Date "2022.10.03"]
[Round "7.3"]
[White "Nadernia, Niki"]
[Black "Abeysinghe, H M H Janandani"]
[Result "1-0"]
[ECO "E68"]
[WhiteElo "1769"]
[BlackElo "1546"]
[Annotator "NA RC COMBH"]
[PlyCount "181"]
[EventDate "2022.09.29"]
[EventType "swiss"]
[EventCountry "OMN"]
[SourceTitle "playchess.com"]
[Source "ChessBase"]
[SourceQuality "1"]
[TimeControl "5400+30"]

1. d4 {[%emt 0:00:23]} g6 {[%emt 0:00:34]} 2. Nf3 {[%emt 0:00:06]} Bg7 {[%emt 0:00:06]} 3. g3 {[%emt 0:00:06]} d6 {[%emt 0:01:11]} 4. Bg2 {[%emt 0:00:07]} Nf6 {[%emt 0:00:05]} 5. O-O {[%emt 0:00:08]} O-O {[%emt 0:00:15]} 6. c4 {[%emt 0:00:05]} Nbd7 {[%emt 0:00:14]} 7. Nc3 {[%emt 0:00:06]} e5 {[%emt 0:00:45]} 8. e4 {[%emt 0:00:15]} exd4 {[%emt 0:02:19]} 9. Nxd4 {[%emt 0:00:07]} Re8 {[%emt 0:00:06]} 10. h3 {[%emt 0:09:30]} Nc5 {[%emt 0:03:51]} 11. Re1 {[%emt 0:00:31]} Ne6 {[%emt 0:02:41]} 12. Nc2 {[%emt 0:08:17]} Nc5 {[%emt 0:01:34]} 13. Rb1 {[%emt 0:04:05]} a5 {[%emt 0:05:24]} 14. Nd4 {[%emt 0:04:24]} Ne6 {[%emt 0:08:25]} 15. Ndb5 {[%emt 0:02:05]} Bf8 {[%emt 0:06:12]} 16. b3 {[%emt 0:16:15]} c6 {[%emt 0:04:30]} 17. Na3 {[%emt 0:02:11]} Nc5 {[%emt 0:04:41]} 18. Nc2 {[%emt 0:01:51]} Be6 {[%emt 0:05:06]} 19. Nd4 {[%emt 0:04:53]} Qc8 {[%emt 0:03:32]} 20. Kh2 {[%emt 0:03:20]} Bd7 {[%emt 0:08:58]} 21. Bg5 {[%emt 0:07:29]} Be7 {[%emt 0:05:18]} 22. Qf3 {[%emt 0:06:53]} Ng4+ {[%emt 0:05:38]} 23. hxg4 {[%emt 0:00:57]} Bxg5 {[%emt 0:00:06]} 24. Qd1 {[%emt 0:02:41]} Bxg4 {[%emt 0:01:00]} 25. f3 {[%emt 0:00:01]} Bd7 {[%emt 0:00:20]} 26. Nc2 {[%emt 0:01:57]} Bf6 {[%emt 0:02:35]} 27. Ne2 {[%emt 0:01:59]} Qc7 {[%emt 0:00:45]} 28. Qd2 {[%emt 0:00:33]} Rad8 {[%emt 0:01:24]} 29. Rbd1 {[%emt 0:01:45]} Bc8 {[%emt 0:00:52]} 30. Rh1 {[%emt 0:01:54]} Bg7 {[%emt 0:04:03]} 31. Ne3 {[%emt 0:05:13]} Qb6 {[%emt 0:03:07]} 32. Bh3 {[%emt 0:01:41]} Bxh3 {[%emt 0:01:25]} 33. Kxh3 {[%emt 0:00:04]} Na6 {[%emt 0:00:52]} 34. Ng4 {[%emt 0:08:50]} Qc7 {[%emt 0:04:09]} 35. Nf4 {[%emt 0:06:14]} Nc5 {[%emt 0:02:59]} 36. Kg2 {[%emt 0:00:25]} h5 {[%emt 0:01:59]} 37. Nf2 {[%emt 0:00:31]} Bh6 {[%emt 0:00:58]} 38. Qc3 {[%emt 0:00:54]} Bg7 {[%emt 0:02:03]} 39. Qd2 {[%emt 0:00:05]} Ne6 {[%emt 0:01:29]} 40. Nxe6 {[%emt 0:00:12]} fxe6 {[%emt 0:01:21]} 41. Qg5 {[%emt 0:00:09]} Qf7 {[%emt 0:00:40]} 42. Qxa5 {[%emt 0:00:55]} Rf8 {[%emt 0:00:37]} 43. Rd3 {[%emt 0:00:11]} d5 {[%emt 0:01:42]} 44. exd5 {[%emt 0:00:26]} exd5 {[%emt 0:00:07]} 45. c5 {[%emt 0:00:39]} Ra8 {[%emt 0:00:45]} 46. Qd2 {[%emt 0:00:05]} Ra3 {[%emt 0:00:47]} 47. Rc1 {[%emt 0:01:29]} Rfa8 {[%emt 0:00:30]} 48. Rc2 {[%emt 0:00:00]} Qc7 {[%emt 0:01:30]} 49. b4 {[%emt 0:00:08]} Qf7 {[%emt 0:00:37]} 50. Nh3 {[%emt 0:00:16]} Rxd3 {[%emt 0:00:51]} 51. Qxd3 {[%emt 0:00:02]} Bh6 {[%emt 0:00:27]} 52. Re2 {[%emt 0:01:47]} Re8 {[%emt 0:00:56]} 53. a4 {[%emt 0:00:36]} Rxe2+ {[%emt 0:00:53]} 54. Qxe2 {[%emt 0:00:01]} Kf8 {[%emt 0:00:47]} 55. Nf2 {[%emt 0:00:19]} Qe7 {[%emt 0:00:23]} 56. Qd3 {[%emt 0:00:13]} Kf7 {[%emt 0:00:24]} 57. Qc2 {[%emt 0:00:46]} Be3 {[%emt 0:01:07]} 58. Nd3 {[%emt 0:00:09]} h4 {[%emt 0:00:45]} 59. gxh4 {[%emt 0:00:51]} Qxh4 {[%emt 0:01:06]} 60. Ne5+ {[%emt 0:00:01]} Kf6 {[%emt 0:00:26]} 61. Ng4+ {[%emt 0:00:03]} Kf7 {[%emt 0:00:35]} 62. Nxe3 {[%emt 0:00:07]} Qxb4 {[%emt 0:00:08]} 63. Ng4 {[%emt 0:00:04]} Qf4 {[%emt 0:00:31]} 64. Qb2 {[%emt 0:00:14]} Qxa4 {[%emt 0:00:41]} 65. Qf6+ {[%emt 0:00:06]} Ke8 {[%emt 0:00:20]} 66. Qxg6+ {[%emt 0:01:26]} Kd8 {[%emt 0:00:22]} 67. Ne5 {[%emt 0:01:53]} Qb4 {[%emt 0:01:42]} 68. Qd6+ {[%emt 0:01:48]} Kc8 {[%emt 0:00:12]} 69. Ng4 {[%emt 0:00:39]} Qd2+ {[%emt 0:00:52]} 70. Kg3 {[%emt 0:00:04]} Qe1+ {[%emt 0:00:28]} 71. Kf4 {[%emt 0:00:47]} Qd2+ {[%emt 0:01:57]} 72. Kg3 {[%emt 0:00:22]} Qe1+ {[%emt 0:00:00]} 73. Kg2 {[%emt 0:00:10]} Qd2+ {[%emt 0:00:00]} 74. Nf2 {[%emt 0:00:02]} Qg5+ {[%emt 0:00:00]} 75. Kh2 {[%emt 0:00:32]} Qh5+ {[%emt 0:00:00]} 76. Kg3 {[%emt 0:00:02]} Qg5+ {[%emt 0:00:30]} 77. Ng4 {[%emt 0:00:01]} Qd2 {[%emt 0:00:15]} 78. Kh4 {[%emt 0:00:17]} d4 {[%emt 0:00:53]} 79. f4 {[%emt 0:00:43]} d3 {[%emt 0:00:38]} 80. Qf8+ {[%emt 0:01:11]} Kc7 {[%emt 0:00:16]} 81. Qd6+ {[%emt 0:00:10]} Kc8 {[%emt 0:00:06]} 82. Kg5 {[%emt 0:00:22]} Qe2 {[%emt 0:00:54]} 83. Ne5 {[%emt 0:00:19]} d2 {[%emt 0:00:32]} 84. Nd7 {[%emt 0:00:22]} Qg2+ {[%emt 0:00:49]} 85. Kf6 {[%emt 0:00:08]} b5 {[%emt 0:01:04]} 86. cxb6 {[%emt 0:00:19]} Kb7 {[%emt 0:00:20]} 87. Qc7+ {[%emt 0:01:29]} Ka6 {[%emt 0:00:14]} 88. b7 {[%emt 0:00:01]} Kb5 {[%emt 0:01:07]} 89. b8=Q+ {[%emt 0:00:07]} Kc4 {[%emt 0:00:11]} 90. Ne5+ {[%emt 0:00:10]} Kd4 {[%emt 0:00:29]} 91. Qbb6+ {[%emt 0:00:22]} 1-0